fUST/lending_fUST_20251225
["ID","MTS","AMOUNT","RATE_DAILY","PERIOD"]
[399681730,1766616631682,-300.0,0.00012701,2]
[399681732,1766616631692,-300.0,0.00012701,2]
[399681734,1766616631702,-1242.63611065,0.00012858,2]
[399681738,1766616631729,-1087.76396063,0.00012858,2]
[399681740,1766616631738,-179.38805132,0.00012897,2]
[399681742,1766616631749,-500.0,0.00012897,2]
[399681744,1766616631759,-500.0,0.00012897,2]
[399681746,1766616631768,-193.09130962,0.00012897,2]
[399681748,1766616631778,-141.80667843,0.00012898,2]
[399682239,1766616642855,-9344.30839235,0.00012898,2]
[399682887,1766616651571,-677.35,0.00012898,2]
[399682888,1766616651584,-45301.13675463,0.00012898,2]
[399683051,1766617831783,-551.15446361,5.321e-05,2]
[399683059,1766617831844,-4448.84553639,5.321e-05,2]
[399683061,1766617831855,-150.0,5.416e-05,2]
[399683063,1766617831864,-150.0,5.757e-05,2]
[399683065,1766617831874,-150.0,6.27e-05,2]
[399683067,1766617831883,-150.0,6.792e-05,2]
[399683069,1766617831893,-177.0,7.416e-05,2]
[399683071,1766617831903,-204.0,9.416e-05,2]
[399683073,1766617831912,-231.0,0.00011416,2]
[399683075,1766617831922,-1200.0,0.00012665,2]
[399683077,1766617831931,-2330.40007128,0.00012666,2]
[399683079,1766617831942,-300.0,0.00012775,2]
[399683081,1766617831951,-298.0,0.00012775,2]
[399683084,1766617831960,-500.0,0.00012797,2]
[399683086,1766617831970,-428.43705408,0.00012797,2]
[399683088,1766617831979,-20297.48718402,0.00012798,2]
[399683090,1766617831991,-7799.99804337,0.00012798,2]
[399683142,1766617837883,-829.03730397,0.0001267,2]
[399683143,1766617837899,-832.12920319,0.0001267,2]
[399683144,1766617837911,-2694.248208,0.0001267,2]
[399683145,1766617837923,-644.58528484,0.0001267,2]
[399683146,1766617837934,-932.75380949,0.00012798,2]
[399683147,1766617837945,-4979.06553641,0.00012798,2]
[399683148,1766617838016,-291.300155,0.00012798,2]
[399683149,1766617838030,-1040.1369001,0.00012798,2]
[399683150,1766617838042,-1619.38572393,0.00012798,2]
[399683151,1766617838053,-2905.13,0.00012798,2]
[399683156,1766617840078,-302.39422272,0.00012798,2]
[399683369,1766617843387,-600.0,0.00012798,2]
[399684262,1766619031958,-5000.0,5.537e-05,2]
[399684263,1766619031969,-500.0,5.537e-05,2]
[399684264,1766619031979,-150.0,5.607e-05,2]
[399684265,1766619031989,-150.0,5.764e-05,2]
[399684266,1766619031998,-150.0,6.288e-05,2]
[399684267,1766619032007,-177.0,7.607e-05,2]
[399684268,1766619032017,-204.0,9.607e-05,2]
[399684269,1766619032026,-323.8573,9.776e-05,2]
[399684271,1766619032036,-231.0,0.00011607,2]
[399684273,1766619032045,-1079.10931156,0.00012247,2]
[399684274,1766619032055,-563.37845791,0.00012455,2]
[399684278,1766619032074,-636.62154209,0.00012455,2]
[399684279,1766619032084,-156.0,0.00012456,2]
[399684280,1766619032094,-300.0,0.00012456,2]
[399684281,1766619032103,-154.0,0.00012456,2]
[399684282,1766619032113,-1517.1826967,0.00012459,2]
[399684283,1766619032122,-159.4874314,0.00012459,2]
[399684284,1766619032131,-281.35481269,0.00012496,2]
[399684285,1766619032141,-321.54835736,0.00012496,2]
[399684286,1766619032150,-501.91688907,0.00012496,2]
[399684287,1766619032160,-500.0,0.00012697,2]
[399684288,1766619032170,-239.02356908,0.00012697,2]
[399684289,1766619032183,-31834.22998527,0.00012698,2]
[399684290,1766619032195,-352.0,0.00012698,2]
[399684312,1766619038190,-775.8445213,5.482e-05,2]
[399684313,1766619038202,-2892.56291802,5.482e-05,2]
[399684314,1766619038254,-1331.59256068,5.482e-05,2]
[399684315,1766619038264,-46622.00283158,0.00012698,2]
[399684316,1766619038276,-12942.11470087,0.00012698,2]
[399684378,1766619040321,-266.93121013,0.00012496,2]
[399684379,1766619040331,-3357.37464871,0.00012698,2]
[399684381,1766619040347,-568.63107229,0.00012698,2]
[399684478,1766619043256,-430.38393557,7.961e-05,2]
[399684479,1766619043266,-430.38393557,0.00010085,2]
[399684480,1766619043277,-430.38393557,0.00012209,2]
[399684481,1766619043287,-480.47617824,0.00012496,2]
[399684482,1766619043296,-4682.28906894,0.00012698,2]
[399684483,1766619043309,-13727.73322972,0.00012698,2]
[399684485,1766619046410,-854.17987242,0.00012496,2]
[399684486,1766619046425,-54704.59072361,0.00012698,2]
[399684491,1766620002135,-5000.0,5.606e-05,2]
[399684492,1766620002160,-150.0,5.663e-05,2]
[399684493,1766620002181,-503.0,5.72e-05,2]
[399684494,1766620002206,-150.0,5.937e-05,2]
[399684495,1766620002229,-150.0,6.477e-05,2]
[399684496,1766620002252,-150.0,7.017e-05,2]
[399684497,1766620002276,-150.0,7.557e-05,2]
[399684498,1766620002297,-177.0,7.663e-05,2]
[399684499,1766620002317,-602.81301378,8.263e-05,2]
[399684500,1766620002339,-204.0,9.663e-05,2]
[399684501,1766620002359,-205.21343389,0.00010093,2]
[399684502,1766620002381,-1200.0,0.00010108,2]
[399684503,1766620002404,-602.81301378,0.00010109,2]
[399684504,1766620002425,-300.0,0.0001019,2]
[399684505,1766620002446,-788.70478205,0.00010191,2]
[399684531,1766620232188,-563.92185353,9.988e-05,2]
[399684532,1766620232199,-785.29022319,9.988e-05,2]
[399684533,1766620232211,-3650.78792328,9.988e-05,2]
[399684534,1766620232222,-561.0,0.00010089,2]
[399684535,1766620232231,-150.0,0.00010401,2]
[399684536,1766620232241,-1333.32139461,0.00010714,2]
[399684537,1766620232251,-375.8108573,0.00011919,2]
[399684539,1766620232260,-564.0,0.00011955,2]
[399684541,1766620232270,-602.81301378,0.00011956,2]
[399684542,1766620232280,-1200.0,0.00012242,2]
[399684543,1766620232289,-1079.10931156,0.00012245,2]
[399684544,1766620232299,-164.17074712,0.00012393,2]
[399684545,1766620232308,-177.0,0.00012401,2]
[399684546,1766620232317,-164.1707471,0.00012469,2]
[399684547,1766620232327,-596.37734476,0.00012493,2]
[399684548,1766620232337,-9994.71696555,0.00012494,2]
[399684549,1766620232347,-164.1707471,0.00012546,2]
[399684550,1766620232356,-101462.24879674,0.00012598,2]
[399684551,1766620232368,-1423.65178104,0.00012598,2]
[399684552,1766620232379,-7942.55050759,0.00012598,2]
[399684554,1766620238209,-4819.5,0.00012598,2]
[399684555,1766620238222,-16844.9999999,0.00012598,2]
[399684556,1766620238234,-338.84055212,0.00012598,2]
[399684557,1766620238246,-2477.74752223,0.00012598,2]
[399684558,1766620238445,-822.42279838,0.00012598,2]
[399684559,1766620238456,-1107.56081372,0.00012598,2]
[399684560,1766620238468,-1049.11911392,0.00012598,2]
[399684561,1766620238479,-890.15205145,0.00012598,2]
[399684562,1766620238490,-281.00478041,0.00012598,2]
[399684563,1766620238501,-333.71912776,0.00012598,2]
[399684564,1766620238570,-32836.43014099,0.00012598,2]
[399684565,1766620238582,-40161.96984318,0.00012598,2]
[399684727,1766620240386,-1023.59729684,0.00012598,2]
[399684753,1766620240682,-1499.98806,0.00012598,2]
[399684754,1766620240702,-303.59,0.00012598,2]
[399684941,1766620243505,-170.26995677,8.263e-05,2]
[399684943,1766620243516,-170.26995677,0.0001149,2]
[399684945,1766620243526,-1758.46008646,0.00012598,2]
[399684947,1766620243538,-886.53,0.00012598,2]
[399684964,1766620243692,-1148.17158261,0.00012598,2]
[399684967,1766620243707,-33401.85134745,0.00012598,2]
[399684969,1766620243719,-436.95228894,0.00012598,2]
[399685241,1766620246399,-5000.0,0.00012472,2]
[399685243,1766620246411,-305.00000001,0.00012598,2]
[399685245,1766620246422,-1434.71368843,0.00012598,2]
[399685248,1766620246435,-35654.80395575,0.00012598,2]
[399685250,1766620246447,-851.78723781,0.00012598,2]
[399686181,1766621433020,-291.46054034,5.643e-05,2]
[399686182,1766621433033,-508.47394635,5.643e-05,2]
[399686216,1766621438654,-3303.3546433,5.643e-05,2]
[399686219,1766621438665,-502.0,5.643e-05,2]
[399686220,1766621438674,-150.0,5.759e-05,2]
[399686222,1766621438683,-150.0,6.057e-05,2]
[399686224,1766621438692,-150.0,6.608e-05,2]
[399686225,1766621438701,-177.0,7.759e-05,2]
[399686226,1766621438711,-358.09575839,8.263e-05,2]
[399686228,1766621438721,-204.0,9.759e-05,2]
[399686229,1766621438731,-358.09575839,0.00010228,2]
[399686230,1766621438740,-180.03268065,0.0001146,2]
[399686231,1766621438750,-323.73476635,0.0001146,2]
[399686232,1766621438760,-3770.66639292,0.0001146,2]
[399686258,1766621440642,-999.3076169,0.0001146,2]
[399686843,1766621446720,-150.0,5.701e-05,2]
[399686845,1766621446730,-264.27307347,7.599e-05,2]
[399686847,1766621446739,-177.0,7.701e-05,2]
[399686849,1766621446748,-204.0,9.701e-05,2]
[399686851,1766621446758,-264.27307347,0.00011101,2]
[399686853,1766621446769,-303.61783648,0.0001146,2]
[399689359,1766621611076,200.0,0.00014908,120]
[399689362,1766621839339,200.0,0.0001,3]
[399689377,1766622557150,-150.0,5.826e-05,2]
[399689378,1766622557172,-505.0,5.881e-05,2]
[399689379,1766622557195,-150.0,5.931e-05,2]
[399689380,1766622557217,-177.0,7.826e-05,2]
[399689381,1766622557240,-267.67378889,7.961e-05,2]
[399689382,1766622557261,-64.7453795,9.805e-05,2]
[399689417,1766622632544,-202.92840939,9.805e-05,2]
[399689418,1766622632555,-557.0,9.805e-05,2]
[399689419,1766622632566,-67.26864823,9.826e-05,2]
[399689420,1766622632578,-136.73135177,9.826e-05,2]
[399689421,1766622632588,-267.67378889,0.00011648,2]
[399689422,1766622632597,-328.3414942,0.00011726,2]
[399689424,1766622632607,-300.0,0.00011797,2]
[399689425,1766622632616,-1018.0,0.00011797,2]
[399689427,1766622632626,-1494.09612367,0.00011798,2]
[399689457,1766622638614,-291.46054034,0.0001168,2]
[399689459,1766622638624,-4.80339682,0.00011798,2]
[399689461,1766622638636,-1646.08159874,0.00011798,2]
[399689470,1766622638717,-445.30023757,0.00011798,2]
[399689472,1766622638729,-27765.80036146,0.00011798,2]
[399689625,1766622641843,-804.7719191,0.00011798,2]
[399689634,1766622643843,-11976.84973429,0.00011798,2]
[399689635,1766622643853,-472.80673382,0.00011798,2]
[399689636,1766622643863,-180.96471367,0.00011798,2]
[399689637,1766622643872,-268.60874912,0.00011798,2]
[399689638,1766622643882,-2210.57085227,0.00011799,2]
[399689639,1766622643893,-5396.0609,0.00011799,2]
[399689640,1766622643904,-629.45209132,0.00011799,2]
[399689641,1766622646788,-333.33333333,0.00011799,2]
[399689650,1766622930882,200.0,0.00014668,120]
[399689730,1766623774428,-150.0,6.33e-05,2]
[399689731,1766623774451,-150.0,6.341e-05,2]
[399689732,1766623774473,-511.0,6.351e-05,2]
[399689733,1766623774496,-469.10680775,7.923e-05,2]
[399689734,1766623774519,-177.0,8.34e-05,2]
[399689735,1766623774543,-195.97137922,9.748e-05,2]
[399689736,1766623774566,-223.96729054,9.748e-05,2]
[399689737,1766623774590,-349.59894258,9.748e-05,2]
[399689738,1766623774611,-469.10680775,9.793e-05,2]
[399689739,1766623774633,-204.0,0.0001034,2]
[399689740,1766623774655,-300.0,0.00011396,2]
[399689741,1766623774679,-3929.1400623,0.00011397,2]
[399689828,1766623837866,-748.8671078,0.00011397,2]
[399689831,1766623837878,-3347.19808484,0.00011397,2]
[399690227,1766623842927,-254.02069168,8.263e-05,2]
[399690228,1766623842937,-2185.66659434,0.00011397,2]
[399690448,1766623845879,-233.46698021,0.00011397,2]
[399690450,1766623845889,-177.70301979,0.00011397,2]
[399693549,1766624803145,-150.0,6.372e-05,2]
[399693550,1766624803168,-5.08121251,6.372e-05,2]
[399693571,1766624953221,-150.0,6.341e-05,2]
[399693572,1766624953243,-505.91878749,6.372e-05,2]
[399693573,1766624953264,-150.0,6.414e-05,2]
[399693574,1766624953286,-382.90965113,7.825e-05,2]
[399693575,1766624953307,-23.62457174,8.414e-05,2]
[399693594,1766625031838,-153.37542826,8.414e-05,2]
[399693595,1766625031848,-538.0,8.414e-05,2]
[399693597,1766625031858,-382.90965113,9.429e-05,2]
[399693598,1766625031868,-220.0,0.0001,2]
[399693599,1766625031878,-204.0,0.00010414,2]
[399693600,1766625031887,-788.70478205,0.00010648,2]
[399693601,1766625031897,-231.4525798,0.00010648,2]
[399693602,1766625031907,-264.51723405,0.00010648,2]
[399693603,1766625031918,-412.89487003,0.00010648,2]
[399693605,1766625031927,-382.90965113,0.00011034,2]
[399693607,1766625031937,-205.21343389,0.000115,2]
[399693609,1766625031946,-276.67529957,0.00011598,2]
[399693611,1766625031955,-500.0,0.00011598,2]
[399693612,1766625031964,-187.70768194,0.00011598,2]
[399693613,1766625031973,-300.0,0.00011598,2]
[399693614,1766625031983,-8163.16546368,0.00011599,2]
[399693615,1766625031995,-607.51500014,0.00011599,2]
[399693616,1766625032006,-1780.10346347,0.00011599,2]
[399693645,1766625038029,-59565.57472434,0.00011599,2]
[399693973,1766625043125,-434.35922891,0.00011599,2]
[399694239,1766625046034,-1971.39407414,0.00011599,2]
[399697778,1766626155134,-507.0,6.049e-05,2]
[399697779,1766626155157,-150.0,6.193e-05,2]
[399697780,1766626155179,-150.0,6.244e-05,2]
[399697781,1766626155204,-359.83097246,7.825e-05,2]
[399697782,1766626155226,-72.61949945,8.244e-05,2]
[399697802,1766626232070,-462.228,8.836e-05,2]
[399697812,1766626238188,-81.772,8.836e-05,2]
[399697814,1766626238199,-150.0,8.836e-05,2]
[399697816,1766626238209,-359.83097246,9.429e-05,2]
[399697818,1766626238220,-323.8573,0.00010444,2]
[399697821,1766626238236,-300.0,0.00010647,2]
[399697823,1766626238246,-1200.0,0.00010647,2]
[399697825,1766626238256,-164.35654512,0.00010648,2]
[399697827,1766626238267,-295.84178122,0.00010648,2]
[399697829,1766626238277,-525.9409444,0.00010648,2]
[399697831,1766626238287,-820.96094289,0.00010648,2]
[399697833,1766626238299,-342.56726613,0.00010648,2]
[399697835,1766626238311,-391.11394156,0.00010648,2]
[399697837,1766626238321,-177.0,0.00010836,2]
[399697839,1766626238332,-359.83097246,0.00011034,2]
[399697841,1766626238342,-171.89212892,0.00011208,2]
[399697843,1766626238352,-309.09642622,0.00011208,2]
[399697845,1766626238362,-10000.0,0.00011599,2]
[399697847,1766626238372,-163.0,0.000116,2]
[399697850,1766626238382,-163.0,0.000116,2]
[399697852,1766626238392,-200.84724032,0.00011798,2]
[399697854,1766626238402,-257.88874845,0.00011798,2]
[399697856,1766626238413,-172.5818997,0.00011798,2]
[399697858,1766626238423,-294.72999823,0.00011798,2]
[399697860,1766626238433,-361.16350755,0.00011798,2]
[399697862,1766626238444,-460.05510661,0.00011798,2]
[399697864,1766626238453,-500.0,0.00011927,2]
[399697866,1766626238463,-645.5122449,0.00011998,2]
[399697868,1766626238473,-600.0,0.00012385,2]
[399697870,1766626238484,-636.8902752,0.00012444,2]
[399697871,1766626238493,-359.83097246,0.00012638,2]
[399697872,1766626238504,-174.45174835,0.00012699,2]
[399697873,1766626238515,-257.77726259,0.00012699,2]
[399697874,1766626238525,-427.86792639,0.00012699,2]
[399697875,1766626238535,-18387.83476834,0.000127,2]
[399697876,1766626238568,-500.0,0.000127,2]
[399698039,1766626240377,-82488.35222172,0.000127,2]
[399698041,1766626240389,-2179.97612,0.000127,2]
[399698183,1766626243588,-3033.49006472,0.000127,2]
[399698184,1766626243623,-908.51,0.000127,2]
[399698197,1766626246316,-501.96799976,0.000127,2]
[399698198,1766626246327,-264.40334013,0.000127,2]
[399698199,1766626246427,-45448.02484264,0.000127,2]
[399698200,1766626246541,-454.932072,0.000127,2]
[399698418,1766627039293,10000.0,4.416e-05,2]
[399698575,1766627348103,-536.0,8.263e-05,2]
[399698576,1766627348128,-317.36725398,8.263e-05,2]
[399698577,1766627348154,-150.0,8.718e-05,2]
[399698578,1766627348177,-233.21583425,9.935e-05,2]
[399698622,1766627432186,-84.15141973,9.935e-05,2]
[399698623,1766627432196,-559.0,9.935e-05,2]
[399698624,1766627432206,-177.0,0.00010718,2]
[399698625,1766627432215,-317.36725398,0.00011606,2]
[399698626,1766627432225,-15.44833511,0.000119,2]
[399698645,1766627438257,-147.55166489,0.000119,2]
[399698647,1766627438268,-500.0,0.00012044,2]
[399698649,1766627438279,-220.47049192,0.00012429,2]
[399698651,1766627438290,-193.83850651,0.00012429,2]
[399698654,1766627438302,-116.49826552,0.00012429,2]
[399698656,1766627438312,-401.71547601,0.00012446,2]
[399698660,1766627438349,-22.87804079,0.00012446,2]
[399698662,1766627438359,-530.28778211,0.00012588,2]
[399698668,1766627438407,-1782.54919021,0.00012588,2]
[399698670,1766627438417,-1200.0,0.00012594,2]
[399698672,1766627438428,-300.0,0.00012595,2]
[399698674,1766627438438,-1316.11270466,0.00012596,2]
[399698676,1766627438448,-248.46204266,0.00012596,2]
[399698678,1766627438458,-500.0,0.00012596,2]
[399698680,1766627438469,-251.64399859,0.00012596,2]
[399698682,1766627438479,-500.0,0.00012596,2]
[399698684,1766627438489,-500.0,0.00012596,2]
[399698686,1766627438499,-324.64871568,0.00012596,2]
[399698688,1766627438510,-500.0,0.00012596,2]
[399698690,1766627438521,-500.0,0.00012596,2]
[399698692,1766627438531,-500.0,0.00012596,2]
[399698694,1766627438541,-500.0,0.00012596,2]
[399698696,1766627438552,-602.86975882,0.00012596,2]
[399698698,1766627438562,-500.0,0.00012596,2]
[399698700,1766627438574,-424.13994704,0.00012596,2]
[399698702,1766627438585,-500.0,0.00012596,2]
[399698704,1766627438595,-500.0,0.00012596,2]
[399698706,1766627438605,-500.0,0.00012596,2]
[399698708,1766627438616,-500.0,0.00012596,2]
[399698710,1766627438627,-500.0,0.00012596,2]
[399698713,1766627438639,-500.0,0.00012596,2]
[399698715,1766627438649,-500.0,0.00012596,2]
[399698717,1766627438659,-500.0,0.00012596,2]
[399698719,1766627438670,-198038.03640582,0.00012597,2]
[399698916,1766627440611,-14144.99999995,0.00012597,2]
[399698918,1766627440622,-1556.18249021,0.00012597,2]
[399698920,1766627440634,-200509.77613385,0.00012597,2]
[399698921,1766627440643,-1009.48,0.000126,2]
[399698922,1766627440653,-93261.15808312,0.00012697,2]
[399699452,1766627446369,-717.9368761,0.00012697,2]
[399699468,1766627446520,-20163.20233862,0.00012697,2]
[399701610,1766627738214,178.48,0.0001,10]
[399701639,1766628559115,-504.0,5.83e-05,2]
[399701640,1766628559138,-150.0,5.963e-05,2]
[399701641,1766628559161,-150.0,6.887e-05,2]
[399701642,1766628559182,-150.0,7.5e-05,2]
[399701643,1766628559203,-232.99950545,7.825e-05,2]
[399701644,1766628559239,-177.0,7.963e-05,2]
[399701645,1766628559266,-150.0,8.124e-05,2]
[399701646,1766628559288,-150.0,8.749e-05,2]
[399701647,1766628559309,-3130.09451027,9.202e-05,2]
[399701672,1766628632371,-150.0,6.241e-05,2]
[399701673,1766628632382,-150.0,6.809e-05,2]
[399701674,1766628632393,-101.15789213,7.376e-05,2]
[399701692,1766628638508,-48.84210787,7.376e-05,2]
[399701693,1766628638518,-150.0,7.944e-05,2]
[399701694,1766628638529,-150.0,8.511e-05,2]
[399701695,1766628638541,-150.0,9.078e-05,2]
[399701696,1766628638551,-3217.53931868,9.202e-05,2]
[399701697,1766628638562,-549.0,9.202e-05,2]
[399701698,1766628638571,-232.99950545,9.323e-05,2]
[399701699,1766628638582,-173.17,9.646e-05,2]
[399701700,1766628638592,-500.0,9.768e-05,2]
[399701701,1766628638601,-204.0,9.963e-05,2]
[399701702,1766628638611,-197.91,0.00010213,2]
[399701703,1766628638621,-500.0,0.00010282,2]
[399701704,1766628638631,-222.65,0.0001078,2]
[399701705,1766628638642,-479.37469911,0.00010796,2]
[399701706,1766628638652,-232.99950545,0.00010821,2]
[399701707,1766628638663,-540.0867714,0.0001132,2]
[399701708,1766628638673,-247.39,0.00011348,2]
[399701709,1766628638683,-231.0,0.00011963,2]
[399701710,1766628638709,-2312.83697232,0.00012014,2]
[399701711,1766628638721,-232.99950545,0.00012318,2]
[399701712,1766628638731,-649.04,0.00012329,2]
[399701713,1766628638742,-540.86,0.00012329,2]
[399701714,1766628638753,-450.72,0.00012329,2]
[399701715,1766628638763,-375.6,0.00012329,2]
[399701716,1766628638773,-313.0,0.00012329,2]
[399701717,1766628638784,-260.83,0.00012329,2]
[399701718,1766628638794,-217.36,0.00012329,2]
[399701719,1766628638804,-181.14,0.00012329,2]
[399701720,1766628638814,-150.95,0.00012329,2]
[399701721,1766628638824,-754.75,0.00012329,2]
[399701722,1766628638835,-283.06234453,0.00012446,2]
[399701723,1766628638846,-500.0,0.00012496,2]
[399701724,1766628638857,-289.20775098,0.00012496,2]
[399701725,1766628638868,-2398.4119403,0.00012562,2]
[399701726,1766628638880,-3248.04633232,0.00012697,2]
[399701727,1766628638894,-2668.98,0.00012697,2]
[399701728,1766628638905,-971.06999034,0.00012697,2]
[399701746,1766628640561,-12434.64349702,0.00012697,2]
[399702303,1766628646568,-4612.17094505,0.00012697,2]
[399702513,1766629646989,-509.0,6.201e-05,2]
[399702514,1766629647052,-150.0,6.342e-05,2]
[399702515,1766629647075,-28.10182125,6.365e-05,2]
[399702516,1766629647391,-121.89817875,6.365e-05,2]
[399702517,1766629647418,-55.10182125,6.943e-05,2]
[399702518,1766629647448,-94.89817875,6.943e-05,2]
[399702519,1766629647471,-109.10182125,7.522e-05,2]
[399702520,1766629647509,-40.89817875,7.522e-05,2]
[399702521,1766629647531,-178.10182125,7.961e-05,2]
[399702522,1766629647553,-150.0,8.101e-05,2]
[399702523,1766629647576,-131.0,8.342e-05,2]
[399702524,1766629647605,-46.0,8.342e-05,2]
[399702525,1766629647628,-132.10182125,8.679e-05,2]
[399702526,1766629647661,-17.89817875,8.679e-05,2]
[399702527,1766629647685,-150.0,9.258e-05,2]
[399702528,1766629647706,-79.10182125,9.837e-05,2]
[399702529,1766629647732,-222.3,9.837e-05,2]
[399702530,1766629647764,-197.6,9.837e-05,2]
[399702531,1766629647793,-300.0,9.837e-05,2]
[399702532,1766629647826,-500.0,9.837e-05,2]
[399702533,1766629647855,-698.47442074,9.837e-05,2]
[399702534,1766629647884,-736.44205578,9.837e-05,2]
[399702535,1766629647907,-172.9,9.837e-05,2]
[399702536,1766629647931,-204.0,0.00010342,2]
[399702537,1766629647966,-197.6,0.00010415,2]
[399702538,1766629647992,-1001.89491654,0.00010972,2]
[399702547,1766629685758,150.0,5.511e-05,2]
[399702548,1766629686150,150.0,6.012e-05,2]
[399702549,1766629686565,150.0,6.513e-05,2]
[399702550,1766629686990,150.0,7.015e-05,2]
[399702584,1766629832658,-150.0,0.00011157,2]
[399702586,1766629832668,-577.0,0.00011157,2]
[399702588,1766629832678,-500.0,0.0001132,2]
[399702590,1766629832688,-1041.66666667,0.0001132,2]
[399702592,1766629832697,-178.10182125,0.00011744,2]
[399702594,1766629832707,-500.0,0.00011988,2]
[399702596,1766629832717,-300.0,0.00012138,2]
[399702598,1766629832727,-7458.72745051,0.00012139,2]
[399702865,1766629841126,-3175.58684153,0.00012139,2]
[399702867,1766629841139,-1987.87049881,0.00012139,2]
[399702869,1766629841151,-2183.82249294,0.00012139,2]
[399702871,1766629841161,-500.0,0.00012296,2]
[399702873,1766629841172,-173.92342986,0.00012296,2]
[399702875,1766629841182,-500.0,0.00012296,2]
[399702876,1766629841192,-500.0,0.00012296,2]
[399702878,1766629841203,-500.0,0.00012296,2]
[399702880,1766629841213,-304.65329174,0.00012296,2]
[399702882,1766629841223,-213.79332745,0.00012296,2]
[399702884,1766629841233,-4089.07671716,0.00012297,2]
[399703050,1766629843899,-97.83865338,0.00012297,2]
[399703051,1766629843911,-4260.0,0.00012297,2]
[399703052,1766629843971,-31418.17967045,0.00012297,2]
[399703061,1766629846633,-725.61998,0.00012297,2]
[399703062,1766629846688,-146534.32930584,0.00012297,2]
[399703063,1766629846698,-2312.83697232,0.0001239,2]
[399703064,1766629846708,-553.23974281,0.00012446,2]
[399703065,1766629846719,-402.27996609,0.00012597,2]
[399703066,1766629846729,-459.74853267,0.00012597,2]
[399703067,1766629846739,-717.63872522,0.00012597,2]
[399703068,1766629846749,-196.06515585,0.00012597,2]
[399703069,1766629846759,-380.06430677,0.00012599,2]
[399703070,1766629846769,-856.58158307,0.00012653,2]
[399703071,1766629846779,-56949.99086914,0.00012697,2]
[399703072,1766629846793,-65094.80598643,0.0001287,2]
[399703073,1766629846803,-163.0,0.000129,2]
[399703074,1766629846814,-150.0,0.00012931,2]
[399703075,1766629846826,-151.368,0.00012931,2]
[399703076,1766629846836,-2398.4119403,0.00012938,2]
[399703077,1766629846849,-600.0,0.00012953,2]
[399703078,1766629846860,-146.08549042,0.00013,2]
[399703079,1766629846878,-103.91450958,0.00013,2]
[399703080,1766629846888,-205.33240459,0.00013,2]
[399703081,1766629846900,-391.80333638,0.00013034,2]
[399703082,1766629846910,-177.0,0.00013157,2]
[399703083,1766629846921,-381.25568244,0.000132,2]
[399703084,1766629846934,-19618.74431856,0.000132,2]
[399703085,1766629846944,-167.25302316,0.00013273,2]
[399703086,1766629846954,-500.0,0.00013273,2]
[399703087,1766629846964,-500.0,0.00013273,2]
[399703088,1766629846974,-500.0,0.00013273,2]
[399703089,1766629846985,-529.00673464,0.00013273,2]
[399703090,1766629846996,-500.0,0.00013273,2]
[399703091,1766629847007,-500.0,0.00013273,2]
[399703092,1766629847017,-500.28967519,0.00013273,2]
[399703093,1766629847027,-500.0,0.00013273,2]
[399703094,1766629847038,-500.0,0.00013273,2]
[399703095,1766629847049,-500.0,0.00013273,2]
[399703096,1766629847059,-527.89020218,0.00013273,2]
[399703097,1766629847069,-232.11522305,0.00013273,2]
[399703098,1766629847079,-500.0,0.00013273,2]
[399703099,1766629847089,-164.0,0.000133,2]
[399703100,1766629847100,-165.24133703,0.000133,2]
[399703101,1766629847111,-503.3513734,0.000133,2]
[399703102,1766629847120,-224.07446383,0.00013418,2]
[399703103,1766629847130,-2487.15318209,0.00013486,2]
[399703104,1766629847143,-10037.94787696,0.0001354,2]
[399703105,1766629847153,-13722.61915586,0.000136,2]
[399703106,1766629889091,156.24,0.0001,2]
[399703107,1766629891489,156.24,0.000102,2]
[399703115,1766630233862,341.0,0.00013699,120]
[399703180,1766630965105,-192.7000911,8.263e-05,2]
[399703241,1766631031603,-13.01475107,8.263e-05,2]
[399703243,1766631031614,-150.0,9.816e-05,2]
[399703244,1766631031623,-526.73447941,0.0001137,2]
[399703245,1766631031656,-4473.26552059,0.0001137,2]
[399703246,1766631031666,-177.0,0.00011816,2]